Cogmind - Beta 15 @@@ ROGUE MODE // 2025.08.14 @ 22:45:42 Player: beans Result: Destroyed by as-83246 with Assembled Rifle Performance ------------- Evolutions (0) 0 Regions Visited (3) 600 Robots Destroyed (24) 120 Value Destroyed (362) 362 Prototype IDs (23) 460 Alien Tech Used (0) 0 Bonus (240) 240 TOTAL SCORE: 1782 Bonus ------- Aligned with FarCom 300 Friendly Fire -60 Cogmind --------- Core Integrity 0/250 Matter 273/300 Energy 70/100 System Corruption 2% Temperature Cool (0) Movement Core (350) Ox6 Location -10/Exiles Parts ------- > --- POWER (1) -------- (None) > --- PROPULSION (2) --- (None) > --- UTILITY (2) ------ Heat Sink Targeting Computer > --- WEAPON (2) ------- YOLO Cannon > --- INVENTORY (5) ---- Small Laser Peak State ------------ > --- POWER ------------ Ion Engine > --- PROPULSION ------- Light Treads > --- UTILITY ---------- Heat Sink Heat Sink > --- WEAPON ----------- YOLO Cannon > --- INVENTORY -------- Targeting Computer Small Laser [Rating: 24] Favorites ----------- Power Ion Engine Engine Ion Engine Propulsion Light Treads Treads Light Treads Utility Heat Sink Device Heat Sink Processor Targeting Computer Weapon Spread Laser Energy Gun Spread Laser Energy Cannon YOLO Cannon Build | -11 -10 -10 -10 ------- Run | Yrd Mat Min Exi Slots Evolved . | . . . . Power . | . . . . Propulsion . | . . . . Utility . | . . . . Weapon . | . . . . Parts Attached 11 | 4 2 3 2 Power 1 | 1 . . . Engine 1 | 1 . . . Core . | . . . . Reactor . | . . . . Propulsion 2 | 2 . . . Treads 2 | 2 . . . Leg . | . . . . Wheel . | . . . . Hover . | . . . . Flight . | . . . . Utility 3 | . . 2 1 Device 2 | . . 2 . Storage . | . . . . Processor 1 | . . . 1 Hackware . | . . . . Protection . | . . . . Artifact . | . . . . Weapon 5 | 1 2 1 1 Energy Gun 4 | 1 2 1 . Energy Cannon 1 | . . . 1 Ballistic Gun . | . . . . Ballistic Cannon . | . . . . Launcher . | . . . . Special Weapon . | . . . . Impact Weapon . | . . . . Slashing Weapon . | . . . . Piercing Weapon . | . . . . Special Melee Weapon . | . . . . Unidentified Prototypes . | . . . . Parts Lost 5 | . . 2 3 Power 1 | . . . 1 Propulsion 2 | . . 1 1 Utility 1 | . . . 1 Weapon 1 | . . 1 . Highest Loss Streak 3 | . . 2 3 To Critical Strikes 1 | . . . 1 Average Backups . | . . . 1 Power . | . . . . Propulsion . | . . . . Utility . | . . . . Weapon . | . . . . Tool/Special . | . . . . Unused Backups . | . . . . Power . | . . . . Propulsion . | . . . . Utility . | . . . . Weapon . | . . . . Tool/Special . | . . . . Average Slot Usage (%) 79 | . 69 87 81 Engine 13 | . 14 14 13 Treads 21 | . 28 23 13 Device 16 | . . 22 27 Energy Gun 26 | . 26 27 24 Peak Build Rating 24 | 4 7 9 24 Average Rating 7 | 3 6 7 9 On Entrance 4 | . 4 7 7 Naked Turns . | . . . . Heaviest Build 13 | 6 11 13 11 Greatest Support 40 | 40 40 40 20 Greatest Overweight (x) 1 | 1 . . . Average Overweight (x) . | . . . . Largest Inventory Capacity 5 | 5 5 5 5 Average Capacity 5 | 5 5 5 5 Most Carried 5 | 2 1 1 5 Average Carried . | . . . 1 Final Capacity 5 | 5 5 5 5 Final Carried 1 | . . 1 1 Class Distribution -------------------- 100% | Mutant Dominant Class ---------------- Mutant | -10/Materials Mutant | -10/Mines Mutant | -10/Exiles Resources | -11 -10 -10 -10 ----------- Run | Yrd Mat Min Exi Matter Collected 311 | 238 37 36 . Remotely . | . . . . Salvage Created 588 | . 176 356 56 Parts 51 | . 29 22 . Haulers Intercepted 1 | . 1 . . Recyclers Shooed . | . . . . Parts Field Recycled . | . . . . Retrieved Matter . | . . . . Parts Self-Destructed . | . . . . Prevented . | . . . . Kills | -11 -10 -10 -10 ------- Run | Yrd Mat Min Exi Combat Hostiles Destroyed 17 | . 6 6 5 Guns 12 | . 6 6 . Cannons 1 | . . . 1 AOE 4 | . . . 4 Classes Destroyed 8 | . 5 2 1 Worker 3 | . . 3 . Builder 4 | . 3 1 . Hauler 1 | . 1 . . Recycler 3 | . 1 2 . Watcher 1 | . 1 . . Swarmer 6 | . 6 . . Grunt 6 | . . 6 . Assembled 5 | . . . 5 Best Kill Streak 6 | . 6 4 5 Combat Bots Only 5 | . 3 2 5 Max Kills in Single Turn 5 | . 2 1 5 Gunslinging . | . . . . Exploded 4 | . . . 4 Melee . | . . . . Uniques/NPCs Destroyed . | . . . . Combat | -11 -10 -10 -10 -------- Run | Yrd Mat Min Exi Hostile Shots Fired 103 | . 21 29 53 Missed 28 | . 3 6 19 Hits 75 | . 18 23 34 Projectile 75 | . 18 23 34 Critical Strikes 8 | . . 2 6 Damage Taken 932 | . 149 295 488 Core 256 | . 47 30 179 Absorbed by Shields . | . . . . Core Remaining (%) 100 | 100 . . . Volleys Fired 62 | . 27 31 4 Largest 2 | . 2 2 1 Hottest 130 | . 130 130 100 Shots Fired 109 | . 47 58 4 Gun 105 | . 47 58 . Cannon 4 | . . . 4 Launcher . | . . . . Special . | . . . . Kinetic . | . . . . Thermal 109 | . 47 58 4 Explosive . | . . . . Electromagnetic . | . . . . Robot Hit Streak 8 | . 5 8 4 Robot Miss Streak 13 | . 13 7 1 Penetration Max . | . . . . Secondary Targets 2 | . . 2 . Max Gunslinging Chain 1 | . . 1 . Shots Hit Robots 83 | . 34 46 3 Core Hits 93 | . 36 54 3 Critical Kills . | . . . . Critical Parts Destroyed . | . . . . Critical Strikes . | . . . . Melee Attacks . | . . . . Impact . | . . . . Slashing . | . . . . Piercing . | . . . . Sneak Attacks . | . . . . Combat Hostiles . | . . . . Follow-up Attacks . | . . . . Damage Inflicted 1451 | . 336 599 516 Guns 935 | . 336 599 . Cannons 166 | . . . 166 Explosions 350 | . . . 350 Melee . | . . . . Ramming . | . . . . Kinetic . | . . . . Thermal 1451 | . 336 599 516 Explosive . | . . . . Electromagnetic . | . . . . Impact . | . . . . Slashing . | . . . . Piercing . | . . . . Highest Corruption 2 | . 2 2 2 Average Corruption 2 | . 2 2 2 Corruption Purged . | . . . . Corruption Blocked . | . . . . Effects 15 | . 6 6 3 Message Errors 3 | . 1 2 . Matter Fused 4 | . 1 3 . Heat Flow Errors 1 | . . . 1 Energy Discharges 3 | . 2 1 . Data Loss (minor) 1 | . 1 . . Data Loss (major) 2 | . . . 2 Weapon Failures 1 | . 1 . . Overload Shots . | . . . . Overflow Damage 167 | . . . 167 Projectiles 133 | . . . 133 Explosions 34 | . . . 34 Melee . | . . . . Knockbacks . | . . . . Impact . | . . . . Kinetic . | . . . . Secondary . | . . . . Self-Inflicted Damage . | . . . . Shots . | . . . . Rammed . | . . . . Targets Rammed . | . . . . Kicked . | . . . . Crushed . | . . . . Highest Temperature 485 | . 313 485 129 Average Temperature 126 | . 132 120 57 Received Heat Transfer 224 | . . 204 20 Effects 6 | . 3 3 . Shutdowns 2 | . . 2 . Energy Bleed 2 | . 1 1 . Interference 2 | . 2 . . Siege Activations . | . . . . Martial Activations . | . . . . Shielding Activations . | . . . . Robots Disrupted . | . . . . Combat Hostiles . | . . . . Robots Corrupted . | . . . . Combat Hostiles . | . . . . Parts Fried . | . . . . Impact Corruptions . | . . . . Robots Melted . | . . . . Combat Hostiles . | . . . . Parts Melted . | . . . . Heat Transferred 1620 | . 420 780 420 Parts Sabotaged . | . . . . Parts Stolen . | . . . . Parts Stripped . | . . . . Power Chain Reactions . | . . . . Alert | -11 -10 -10 -10 ------- Run | Yrd Mat Min Exi Maximum Alert Level . | . . . . Low Security (%) 100 | 100 100 100 . Level 1 . | . . . . Level 2 . | . . . . Level 3 . | . . . . Level 4 . | . . . . Level 5 . | . . . . High Security . | . . . . Max Security . | . . . . Peak Influence 99 | . 99 90 . Initial 30 | . . 30 . Average 41 | . 32 55 . Influence Increases 354 | . 174 180 . Destroy 0b10 Robot/C 240 | . 120 120 . Destroy 0b10 Robot/NC 60 | . 30 30 . Destroy Leader 54 | . 24 30 . Influence Decreases 354 | . 95 249 10 Entered New Map 59 | . . 49 10 Time Decay 275 | . 95 180 . Lost Part 20 | . . 20 . Squads Dispatched . | . . . . Investigation . | . . . . Extermination . | . . . . Reinforcement . | . . . . Assault . | . . . . Garrison . | . . . . Intercept . | . . . . Searches Triggered . | . . . . Construction Impeded . | . . . . Haulers Reinforced . | . . . . Active Scanning Responses . | . . . . Cargo Convoy Interrupts . | . . . . Stealth | -11 -10 -10 -10 --------- Run | Yrd Mat Min Exi Distress Signals 1 | . 1 . . Communications Jammed . | . . . . Distress Signals . | . . . . Times Spotted 22 | . 8 6 8 Peak Tracking Total 9 | . 4 2 9 Tactical Retreats . | . . . . Traps | -11 -10 -10 -10 ------- Run | Yrd Mat Min Exi Traps Triggered 1 | . 1 . . Indirectly . | . . . . Trap Hack Attempts . | . . . . Triggered . | . . . . Disarmed . | . . . . Reprogrammed . | . . . . Reused . | . . . . Traps Extracted . | . . . . Installed . | . . . . Triggered . | . . . . Machines | -11 -10 -10 -10 ---------- Run | Yrd Mat Min Exi Machines Disabled 2 | . . . 2 Max in Single Turn 2 | . . . 2 Machines Repaired . | . . . . Machines Dismantled . | . . . . Machines Sabotaged . | . . . . Overloaded Fab Kills . | . . . . Hacking | -11 -10 -10 -10 --------- Run | Yrd Mat Min Exi Machines Accessed 1 | . . . 1 Terminals . | . . . . Fabricators . | . . . . Repair Stations . | . . . . Recycling Units . | . . . . Scanalyzers . | . . . . Garrison Access . | . . . . Total Hacks 1 | . . . 1 Successful 1 | . . . 1 Failed . | . . . . Catastrophic . | . . . . Database Lockouts . | . . . . Manual 1 | . . . 1 Terminals . | . . . . Fabricators . | . . . . Repair Stations . | . . . . Recycling Units . | . . . . Scanalyzers . | . . . . Garrison Access . | . . . . Terminal Hacks 1 | . . . 1 Proto ID Catalog 1 | . . . 1 Fabricator Hacks . | . . . . Repair Station Hacks . | . . . . Recycling Unit Hacks . | . . . . Scanalyzer . | . . . . Garrison Access Hacks . | . . . . Unauthorized Hacks . | . . . . Terminals . | . . . . Fabricators . | . . . . Repair Stations . | . . . . Recycling Units . | . . . . Scanalyzers . | . . . . Garrison Access . | . . . . Data Cores Recovered . | . . . . Used . | . . . . Hacking Detections . | . . . . Full Trace Events . | . . . . Feedback Events . | . . . . Feedback Blocked . | . . . . Robot Schematics Acquired . | . . . . Robots Built . | . . . . Authchips . | . . . . Time . | . . . . Total Robot Build Rating . | . . . . Part Schematics Acquired . | . . . . Parts Built . | . . . . Authchips . | . . . . Time . | . . . . Total Part Build Rating . | . . . . Parts Repaired . | . . . . Time . | . . . . Parts Recycled . | . . . . Recycled Matter . | . . . . Retrieved Matter . | . . . . Retrieved Components . | . . . . Parts Scanalyzed . | . . . . Part Schematics Acquired . | . . . . Parts Damaged . | . . . . Bothacking | -11 -10 -10 -10 ------------ Run | Yrd Mat Min Exi Used RIF Installer . | . . . . Robots Hacked . | . . . . Non-combat . | . . . . Combat . | . . . . Robot Hacks Applied . | . . . . Relay Couplers Released . | . . . . Fabnet Peak Effective % . | . . . . Robots Rewired . | . . . . Allies Hacked . | . . . . Hacks Repelled . | . . . . Allies | -11 -10 -10 -10 -------- Run | Yrd Mat Min Exi Total Allies . | . . . . Largest Group . | . . . . Highest-Rated Group . | . . . . Highest-Rated Ally . | . . . . Total Orders . | . . . . Ally Attacks . | . . . . Total Damage . | . . . . Kills . | . . . . Allies Corrupted . | . . . . Allies Melted . | . . . . Intel | -11 -10 -10 -10 ------- Run | Yrd Mat Min Exi Active Infowar (turns) . | . . . . Robot Analysis Total . | . . . . Derelict Logs Recovered 1 | . . 1 . Drone Launches . | . . . . Drone Recoveries . | . . . . Exploration | -11 -10 -10 -10 ------------- Run | Yrd Mat Min Exi Turns Passed 1064 | 62 317 361 324 Spaces Moved 492 | 41 129 145 177 Core 11 | 11 . . . Treads 481 | 30 129 145 177 Legs . | . . . . Wheels . | . . . . Hover . | . . . . Flight . | . . . . Fastest Speed 50 | 50 160 160 160 Average Speed 157 | 134 160 160 160 Slowest Speed 160 | 160 160 160 160 Overloaded Moves . | . . . . Propulsion Burnouts . | . . . . Robots Hopped . | . . . . Potential Cave-ins . | . . . . Cave-ins Triggered . | . . . . Exploration Rate (%) 27 | 3 29 36 41 Regions Visited 3 Branch Regions 2 Pre-discovered Areas 1 | . . 1 . Known Exits Taken . | . . . . Unknown Exits Taken 3 | 1 1 1 . Scrap Searched 1 | . . 1 . Spaces Dug . | . . . . Terrain Destroyed 42 | . . . 42 Melee . | . . . . Projectile 1 | . . . 1 AOE 41 | . . . 41 Terrain Rammed . | . . . . Walls Destroyed . | . . . . Machines Disabled . | . . . . Actions | -11 -10 -10 -10 --------- Run | Yrd Mat Min Exi Total 663 | 48 192 216 207 Wait 84 | . 31 34 19 Move 489 | 40 128 144 177 Hop . | . . . . Pick Up 11 | 4 2 4 1 Fast Attach . | . . . . Attach 12 | 4 2 3 3 Detach 2 | . . . 2 Swap 1 | . 1 . . Drop 2 | . 1 . 1 Fire 62 | . 27 31 4 Melee . | . . . . Ram . | . . . . Kick . | . . . . Crush . | . . . . Escape Stasis . | . . . . Rewire . | . . . . Trap . | . . . . Miscellaneous . | . . . . Route ------- -11/Scrapyard -10/Materials -10/Mines (discovered 2 exits: [*Mat] / *Exi) -10/Exiles History --------- Turn | Location | Event 4 | -11/Scrapyard | Discovered new exit (range 16) 63 | -11/Scrapyard | Entered Materials 229 | -10/Materials | Discovered new exit (range 12) 301 | -10/Materials | Build established: Mutant 380 | -10/Materials | Entered Mines 539 | -10/Mines | Learned location of Zion (-7) 565 | -10/Mines | Discovered new exit (range 9) 674 | -10/Mines | Found DCF Scrap (14 items) 734 | -10/Mines | Deemed a non-threat by the Exiles lab entrance 734 | -10/Mines | Discovered new exit (range 5) 741 | -10/Mines | Entered Exiles 785 | -10/Exiles | Met 8R-AWN 809 | -10/Exiles | Met EX-HEX 855 | -10/Exiles | Met EX-BIN 873 | -10/Exiles | Aligned with FarCom system 874 | -10/Exiles | Given EX-Vault access code 913 | -10/Exiles | Opened EX-Vault 922 | -10/Exiles | Found YOLO Cannon 957 | -10/Exiles | Warned to stay clear of 0b10 Research branches 1039 | -10/Exiles | Attacked by the Exiles 1055 | -10/Exiles | Core integrity fell below 50% 1059 | -10/Exiles | Core integrity fell below 20% 1065 | -10/Exiles | Destroyed by as-83246 with Assembled Rifle Last Messages --------------- as-47545 destroyed. as-60339 destroyed. Destroyed Asb. Hover Unit. as-97802 destroyed. as-63041 destroyed. as-05791 destroyed. Penetrated by HV Slug. HV Slug penetrates Wall. Penetrated by HV Slug. Critical hit (Destroy). Heat Sink destroyed. Ion Engine destroyed. HV Slug penetrates Wall. Lgt. Treads destroyed. Penetrated by HV Slug. HV Slug penetrates Wall. Penetrated by HV Slug. HV Slug penetrates Wall. Penetrated by HV Slug. HV Slug penetrates Wall. Map ----- +----------------------------------------------------+ | """"????????????????????????????????????? | | """#????????????????????????????????????? | | "X" """"????????????????????????????????????? | | """ #????????????????????????????????????? | | """""""""#????????????????????????????????????? | | ###########????????????????????????????????????? | | #??????????????????????????????????????????????? | | #??????????????????????????????????????????????? | | ##?????????????????????????????????????????????? | | ##???###########??????????????????????????????? | | #####"""""""""##?????????????????????????????? | | " """ """"##????????????????????????????? | | "" " #????????????????????????????? | | " """#????????????? ??????????????? | | " "#???????????## ????????????? | | " "##?????????## ????????????? | | ""###???????# ???????????? | | """#??????# g ???????????? | | "" "#????### ;#????????## | | ###""" ##???# ########## | | ??##""" ##?## #""""## | | ???#"""" ### * | | ???#"" ## * | | ???"""" #### | | ??" ""#?#"""""#### | | " @ #"""##?#######??#### | | ######??????????????#### | | % ##??????????????????????? | | " %a% ;#???????????????????????? | | "" """ a ;????????????????????????? | | #?""" " " ""#" % ;;????????????????????????? | | ???###""" """##"""" ;;?????????????????????????? | | ?????###""""??##########?????????????????????????? | | ???????###???????????????????????????????????????? | | ?????????????????????????????????????????????????? | | ?????????????????????????????????????????????????? | | ?????????????????????????????????????????????????? | | ?????????????????????????????????????????????????? | | ?????????????????????????????????????????????????? | | ?????????????????????????????????????????????????? | | ?????????????????????????????????????????????????? | | ?????????????????????????????????????????????????? | | ?????????????????????????????????????????????????? | | ?????????????????????????????????????????????????? | | ?????????????????????????????????????????????????? | | ?????????????????????????????????????????????????? | | ?????????????????????????????????????????????????? | | ?????????????????????????????????????????????????? | | ?????????????????????????????????????????????????? | | ?????????????????????????????????????????????????? | +----------------------------------------------------+ Best States ------------- Heat Dissipation 45 Energy Generation 10 Energy Capacity 250 Matter Stores 300 Matter Capacity 300 Sight Range 16 Terrain Scan Density 10 Evasion (%) 40 Targeting Accuracy 5 Recoil Reduction 2 Item Schematics ----------------- None Robot Schematics ------------------ None Fabricated ------------ Nothing Repaired ---------- Nothing Alien Tech Used ----------------- None Achievements -------------- None Challenges ------------ None Game ------ Seed ShrapnelIonBlade Manual? 0 Play Time 00:07:39 Cumulative 89.2 hours Start 2025.08.14 @ 22:39:39 End 2025.08.14 @ 22:45:42 Sessions 1 Manual Loads 0 Difficulty Rogue Special Mode None Game No. 352 Rogue 352 Adventurer 0 Explorer 0 Win Type - Total 0 Types 0/0/0/0/0/0/0/0/0/0 Lore% 37 Gallery% 37 Achievement% 30 Wizard Run 0 Options --------- Layout 2 ASCII 0 Keyboard 0 Movement Mouse Keybinds 0 Fullscreen 2 Font 24/Smallcaps Map View 50x44 Zoom Use 0% Tactical HUD 0 Map Filters NONE Filters NONE Steam 1 RUN: 6906af4e-5878-4dba-8214-50dd31f29fe3